[Event "94th Paris-ch  2019"]
[Site "Paris"]
[Date "2019.07.11"]
[Round "6.22"]
[White "Girel, Joseph"]
[Black "Douriet Duany, Alexis"]
[Result "1-0"]
[ECO "B75"]
[WhiteElo "2215"]
[BlackElo "2247"]
[Annotator "ChessBase"]
[PlyCount "71"]
[EventDate "2019.07.07"]
[EventType "swiss"]
[EventCountry "FRA"]
[TimeControl "5400+30"]

1. e4 {[%emt 0:00:00]} g6 {[%emt 0:05:19]} 2. d4 {[%emt 0:00:19]} Bg7 {[%emt 0:00:01]} 3. Nc3 {[%emt 0:00:35]} c5 {[%emt 0:00:37]} 4. Nf3 {[%emt 0:01:52]} cxd4 {[%emt 0:00:58]} 5. Nxd4 {[%emt 0:00:15]} Nc6 {[%emt 0:00:03]} 6. Be3 {[%emt 0:00:45]} d6 {[%emt 0:00:20]} 7. Qd2 {[%emt 0:00:55]} Bd7 {[%emt 0:00:08]} 8. Bc4 {[%emt 0:00:41]} Rc8 {[%emt 0:00:11]} 9. Bb3 {[%emt 0:00:07]} Nf6 {[%emt 0:00:18]} 10. f3 {[%emt 0:00:10]} Ne5 {[%emt 0:00:18]} 11. O-O-O {[%emt 0:01:43]} Nc4 {[%emt 0:00:45]} 12. Bxc4 Rxc4 {[%emt 0:00:01]} 13. g4 {[%emt 0:02:02]} Qc8 {[%emt 0:29:05]} 14. h4 {[%emt 0:06:10]} Bxg4 {[%emt 0:12:13]} 15. fxg4 {[%emt 0:00:48]} Nxg4 {[%emt 0:00:03]} 16. Nde2 {[%emt 0:16:21]} h5 {[%emt 0:06:12]} 17. Kb1 {[%emt 0:02:49]} b5 {[%emt 0:00:04]} 18. Bd4 {[%emt 0:04:19]} O-O {[%emt 0:16:46]} 19. Bxg7 {[%emt 0:03:40]} Kxg7 {[%emt 0:00:05]} 20. Ng3 {[%emt 0:02:02]} Qe6 {[%emt 0:09:35]} 21. Nce2 {[%emt 0:13:50]} Qe5 {[%emt 0:01:32]} 22. Rhg1 {[%emt 0:01:58]} Rfc8 {[%emt 0:02:05]} 23. Nd4 {[%emt 0:04:17]} Kf8 {[%emt 0:01:39]} 24. b3 {[%emt 0:07:12]} Rc3 {[%emt 0:00:32]} 25. Nge2 {[%emt 0:01:51]} Rh3 {[%emt 0:00:20]} 26. Qf4 {[%emt 0:04:43]} Rxh4 {[%emt 0:02:11]} 27. Nf3 {[%emt 0:01:08]} Qc5 {[%emt 0:03:16]} 28. Ned4 {[%emt 0:01:31]} Ne5 {[%emt 0:04:10]} 29. Qh6+ {[%emt 0:01:41]} Ke8 {[%emt 0:01:05]} 30. Nxh4 {[%emt 0:00:34]} Nc4 {[%emt 0:00:02]} 31. bxc4 {[%emt 0:01:38]} bxc4 {[%emt 0:00:29]} 32. Qc1 {[%emt 0:02:15]} Rb8+ {[%emt 0:00:17]} 33. Ka1 {[%emt 0:00:24]} e5 {[%emt 0:00:31]} 34. c3 {[%emt 0:01:55]} exd4 {[%emt 0:00:26]} 35. cxd4 {[%emt 0:00:11]} Qb4 {[%emt 0:00:17]} 36. Qc2 {[%emt 0:00:35]} 1-0

[Event "94th Paris-ch  2019"]
[Site "Paris"]
[Date "2019.07.12"]
[Round "7.2"]
[White "Abergel, Thal"]
[Black "Albaric, Etienne"]
[Result "1-0"]
[ECO "A36"]
[WhiteElo "2450"]
[BlackElo "2225"]
[Annotator "ChessBase"]
[PlyCount "83"]
[EventDate "2019.07.07"]
[EventType "swiss"]
[EventCountry "FRA"]
[SourceTitle "playchess.com"]
[Source "ChessBase"]
[SourceQuality "1"]
[TimeControl "5400+30"]

1. Nf3 {[%emt 0:00:00]} c5 {[%emt 0:00:00]} 2. c4 {[%emt 0:00:05]} Nc6 {[%emt 0:00:00]} 3. Nc3 {[%emt 0:00:38]} g6 {[%emt 0:00:37]} 4. b3 {[%emt 0:00:53]} Bg7 {[%emt 0:00:19]} 5. Bb2 {[%emt 0:00:10]} d6 {[%emt 0:00:55]} 6. g3 {[%emt 0:00:26]} e5 {[%emt 0:05:25]} 7. d3 {[%emt 0:03:03]} Nge7 {[%emt 0:03:05]} 8. Bg2 {[%emt 0:00:23]} h6 {[%emt 0:02:51]} 9. h4 {[%emt 0:08:17]} Be6 {[%emt 0:04:14]} 10. h5 {[%emt 0:00:24]} g5 {[%emt 0:02:46]} 11. e4 {[%emt 0:07:05]} Qd7 {[%emt 0:18:09]} 12. Nd5 {[%emt 0:01:37]} O-O-O {[%emt 0:08:55]} 13. Ne3 {[%emt 0:03:02]} f5 {[%emt 0:02:52]} 14. Qd2 {[%emt 0:04:45]} Rhg8 {[%emt 0:10:10]} 15. g4 {[%emt 0:13:36]} fxg4 {[%emt 0:01:19]} 16. Nh2 {[%emt 0:01:49]} g3 {[%emt 0:04:20]} 17. fxg3 {[%emt 0:00:17]} Kb8 {[%emt 0:04:36]} 18. g4 {[%emt 0:00:37]} Rgf8 {[%emt 0:00:27]} 19. Nf5 {[%emt 0:00:14]} Ng8 {[%emt 0:01:46]} 20. Nf1 {[%emt 0:00:18]} Nf6 {[%emt 0:00:50]} 21. N1e3 {[%emt 0:00:12]} Nd4 {[%emt 0:01:07]} 22. O-O {[%emt 0:02:21]} Nxf5 {[%emt 0:06:15]} 23. exf5 {[%emt 0:00:53]} Bg8 {[%emt 0:00:01]} 24. Be4 {[%emt 0:00:53]} Rfe8 {[%emt 0:02:33]} 25. Qg2 {[%emt 0:01:01]} Bf8 {[%emt 0:01:34]} 26. Rae1 {[%emt 0:04:48]} Bf7 {[%emt 0:03:18]} 27. a3 {[%emt 0:01:52]} Qc7 {[%emt 0:02:35]} 28. Bc3 {[%emt 0:01:56]} Qb6 {[%emt 0:00:30]} 29. Qb2 {[%emt 0:02:16]} Ka8 {[%emt 0:01:54]} 30. Kh1 {[%emt 0:04:20]} Bg7 {[%emt 0:02:04]} 31. Bf3 {[%emt 0:08:53]} Rd7 {[%emt 0:01:58]} 32. a4 {[%emt 0:02:20]} d5 {[%emt 0:02:26]} 33. cxd5 {[%emt 0:00:24]} Nxd5 {[%emt 0:01:05]} 34. Nc4 {[%emt 0:00:31]} Qa6 {[%emt 0:00:19]} 35. Bxe5 {[%emt 0:02:49]} Rde7 {[%emt 0:00:53]} 36. Qa1 {[%emt 0:01:44]} Bf6 {[%emt 0:01:44]} 37. Bxf6 {[%emt 0:02:16]} Nxf6 {[%emt 0:00:02]} 38. Rxe7 {[%emt 0:01:16]} Rxe7 {[%emt 0:00:01]} 39. Re1 {[%emt 0:00:18]} Rxe1+ {[%emt 0:02:52]} 40. Qxe1 {[%emt 0:00:05]} Ng8 {[%emt 0:00:32]} 41. Qe5 {[%emt 0:01:19]} Qf6 {[%emt 0:00:42]} 42. Qc7 {[%emt 0:00:42]} 1-0

[Event "94th Paris-ch  2019"]
[Site "Paris"]
[Date "2019.07.12"]
[Round "7.3"]
[White "Guilleux, Fabien"]
[Black "Shchekachev, Andrei"]
[Result "0-1"]
[ECO "A88"]
[WhiteElo "2442"]
[BlackElo "2531"]
[Annotator "ChessBase"]
[PlyCount "72"]
[EventDate "2019.07.07"]
[EventType "swiss"]
[EventCountry "FRA"]
[SourceTitle "playchess.com"]
[Source "ChessBase"]
[SourceQuality "1"]
[TimeControl "5400+30"]

1. Nf3 {[%emt 0:00:00]} d6 {[%emt 0:02:48]} 2. d4 {[%emt 0:00:00]} f5 {[%emt 0:00:35]} 3. g3 {[%emt 0:00:39]} Nf6 {[%emt 0:00:24]} 4. Bg2 {[%emt 0:00:10]} g6 {[%emt 0:00:46]} 5. O-O {[%emt 0:00:17]} Bg7 {[%emt 0:00:14]} 6. c4 {[%emt 0:00:18]} O-O {[%emt 0:02:48]} 7. Nc3 {[%emt 0:00:20]} c6 {[%emt 0:01:29]} 8. Bf4 {[%emt 0:21:26]} Nh5 {[%emt 0:10:07]} 9. Be3 {[%emt 0:16:06]} e5 {[%emt 0:07:03]} 10. dxe5 {[%emt 0:00:57]} dxe5 {[%emt 0:02:25]} 11. Bc5 {[%emt 0:00:09]} Qxd1 {[%emt 0:01:04]} 12. Raxd1 {[%emt 0:01:32]} Re8 {[%emt 0:00:11]} 13. Bd6 {[%emt 0:01:53]} e4 {[%emt 0:04:03]} 14. Nd4 {[%emt 0:02:32]} Nd7 {[%emt 0:02:28]} 15. f3 {[%emt 0:20:57]} Ne5 {[%emt 0:03:32]} 16. Bxe5 {[%emt 0:02:45]} Bxe5 {[%emt 0:02:03]} 17. f4 {[%emt 0:07:31]} Bh8 {[%emt 0:10:44]} 18. e3 {[%emt 0:00:52]} Ng7 {[%emt 0:03:17]} 19. b3 {[%emt 0:05:39]} Ne6 {[%emt 0:01:34]} 20. Nxe6 {[%emt 0:00:02]} Bxe6 {[%emt 0:00:09]} 21. Na4 {[%emt 0:00:04]} Rad8 {[%emt 0:02:55]} 22. Kf2 {[%emt 0:01:24]} Kf7 {[%emt 0:06:43]} 23. Ke2 {[%emt 0:00:40]} Ke7 {[%emt 0:05:34]} 24. Rxd8 {[%emt 0:05:57]} Rxd8 {[%emt 0:00:11]} 25. Rd1 {[%emt 0:02:00]} Rb8 {[%emt 0:00:46]} 26. Bf1 {[%emt 0:01:48]} b6 {[%emt 0:00:41]} 27. Kd2 {[%emt 0:00:23]} Bf6 {[%emt 0:01:59]} 28. h4 {[%emt 0:01:16]} h6 {[%emt 0:00:24]} 29. Be2 {[%emt 0:00:05]} Kf7 {[%emt 0:02:33]} 30. Rg1 {[%emt 0:03:14]} Be7 {[%emt 0:04:37]} 31. Kc2 {[%emt 0:00:32]} b5 {[%emt 0:01:36]} 32. Nc3 {[%emt 0:00:02]} bxc4 {[%emt 0:03:10]} 33. bxc4 {[%emt 0:00:02]} Bc5 {[%emt 0:00:20]} 34. Nd1 {[%emt 0:00:02]} Rb4 {[%emt 0:03:33]} 35. Re1 {[%emt 0:03:04]} Bxc4 {[%emt 0:03:34]} 36. a3 {[%emt 0:00:10]} Bb3+ {[%emt 0:00:48]} 0-1

[Event "94th Paris-ch  2019"]
[Site "Paris"]
[Date "2019.07.12"]
[Round "7.4"]
[White "Moksh Amit Doshi"]
[Black "Bonte, Andrei-Mihai"]
[Result "1/2-1/2"]
[ECO "D36"]
[WhiteElo "2229"]
[BlackElo "2337"]
[Annotator "NA"]
[PlyCount "108"]
[EventDate "2019.07.07"]
[EventType "swiss"]
[EventCountry "FRA"]
[SourceTitle "playchess.com"]
[Source "ChessBase"]
[SourceQuality "1"]
[TimeControl "5400+30"]

1. d4 {[%emt 0:02:01]} Nf6 {[%emt 0:00:45]} 2. c4 {[%emt 0:00:23]} e6 {[%emt 0:00:10]} 3. Nc3 {[%emt 0:00:05]} d5 {[%emt 0:02:26]} 4. cxd5 {[%emt 0:01:36]} exd5 {[%emt 0:00:08]} 5. Bg5 {[%emt 0:00:05]} c6 {[%emt 0:00:22]} 6. e3 {[%emt 0:00:05]} Be7 {[%emt 0:00:10]} 7. Bd3 {[%emt 0:00:14]} Nbd7 {[%emt 0:01:06]} 8. Qc2 {[%emt 0:00:07]} O-O {[%emt 0:00:16]} 9. Nf3 {[%emt 0:00:41]} Re8 {[%emt 0:00:39]} 10. O-O {[%emt 0:00:09]} Nf8 {[%emt 0:00:18]} 11. h3 {[%emt 0:00:06]} Nh5 {[%emt 0:11:52]} 12. Bxe7 {[%emt 0:01:20]} Qxe7 {[%emt 0:00:13]} 13. Rab1 {[%emt 0:02:27]} Nf6 {[%emt 0:04:37]} 14. b4 {[%emt 0:03:13]} Bd7 {[%emt 0:00:06]} 15. Na4 {[%emt 0:08:00]} Rec8 {[%emt 0:12:17]} 16. Rfc1 {[%emt 0:05:03]} Ne8 {[%emt 0:02:41]} 17. Nc5 {[%emt 0:05:42]} Nd6 {[%emt 0:00:02]} 18. Ne5 {[%emt 0:02:11]} Be8 {[%emt 0:00:18]} 19. a4 {[%emt 0:05:07]} f6 {[%emt 0:09:07]} 20. Nf3 {[%emt 0:00:43]} b6 {[%emt 0:00:23]} 21. Na6 {[%emt 0:01:03]} Bg6 {[%emt 0:09:38]} 22. Nd2 {[%emt 0:03:31]} Qb7 {[%emt 0:03:51]} 23. Qb3 {[%emt 0:04:34]} Bxd3 {[%emt 0:06:34]} 24. Qxd3 {[%emt 0:01:17]} Ng6 {[%emt 0:00:29]} 25. Rc3 {[%emt 0:07:24]} Ne7 {[%emt 0:04:30]} 26. Rbc1 {[%emt 0:02:20]} Kh8 {[%emt 0:05:13]} 27. b5 {[%emt 0:06:01]} cxb5 {[%emt 0:01:35]} 28. Nc7 {[%emt 0:00:12]} b4 {[%emt 0:05:52]} 29. R3c2 {[%emt 0:02:11]} Rab8 {[%emt 0:00:28]} 30. Na6 {[%emt 0:01:34]} Rxc2 {[%emt 0:00:42]} 31. Rxc2 {[%emt 0:00:05]} Rc8 {[%emt 0:00:21]} 32. Nxb4 {[%emt 0:00:31]} a5 {[%emt 0:00:43]} 33. Na2 {[%emt 0:01:03]} Rxc2 {[%emt 0:02:59]} 34. Qxc2 {[%emt 0:00:06]} Qc6 {[%emt 0:00:41]} 35. Qxc6 {[%emt 0:02:44]} Nxc6 {[%emt 0:00:02]} 36. Nc3 {[%emt 0:00:36]} Nb4 {[%emt 0:00:07]} 37. f3 {[%emt 0:01:10]} f5 {[%emt 0:01:42]} 38. g4 {[%emt 0:01:32]} g6 {[%emt 0:00:57]} 39. gxf5 {[%emt 0:00:07]} gxf5 {[%emt 0:00:20]} 40. e4 {[%emt 0:00:42]} fxe4 {[%emt 0:00:34]} 41. fxe4 {[%emt 0:00:05]} dxe4 {[%emt 0:00:30]} 42. Ncxe4 {[%emt 0:00:23]} Nxe4 {[%emt 0:00:24]} 43. Nxe4 {[%emt 0:00:06]} Kg7 {[%emt 0:04:48]} 44. Kf2 {[%emt 0:00:33]} Nd5 {[%emt 0:00:41]} 45. Kf3 {[%emt 0:00:55]} Kg6 {[%emt 0:00:32]} 46. Kg3 {[%emt 0:01:07]} Kf5 {[%emt 0:00:46]} 47. Nd6+ {[%emt 0:00:50]} Ke6 {[%emt 0:00:26]} 48. Nc4 {[%emt 0:00:07]} Kf5 {[%emt 0:01:09]} 49. Kf3 {[%emt 0:00:11]} Kg5 {[%emt 0:00:51]} 50. Kg3 {[%emt 0:01:57]} h6 {[%emt 0:02:10]} 51. h4+ {[%emt 0:00:19]} Kh5 {[%emt 0:00:37]} 52. Kh3 {[%emt 0:00:25]} Nf4+ {[%emt 0:02:08]} 53. Kg3 {[%emt 0:00:04]} Ne2+ {[%emt 0:00:08]} 54. Kh3 {[%emt 0:00:04]} Nxd4 {[%emt 0:00:26]} 1/2-1/2

[Event "94th Paris-ch  2019"]
[Site "Paris"]
[Date "2019.07.12"]
[Round "7.6"]
[White "Flom, Gabriel"]
[Black "Anand Nadar"]
[Result "1/2-1/2"]
[ECO "A45"]
[WhiteElo "2494"]
[BlackElo "2358"]
[Annotator "ChessBase"]
[PlyCount "134"]
[EventDate "2019.07.07"]
[EventType "swiss"]
[EventCountry "FRA"]
[SourceTitle "playchess.com"]
[Source "ChessBase"]
[SourceQuality "1"]
[TimeControl "5400+30"]

1. d4 {[%emt 0:00:49]} Nf6 {[%emt 0:00:00]} 2. Bg5 {[%emt 0:00:02]} e6 {[%emt 0:00:30]} 3. e4 {[%emt 0:00:09]} c5 {[%emt 0:00:19]} 4. d5 {[%emt 0:00:43]} h6 {[%emt 0:00:14]} 5. Bxf6 {[%emt 0:00:16]} Qxf6 {[%emt 0:00:06]} 6. c3 {[%emt 0:00:22]} a6 {[%emt 0:01:42]} 7. a4 {[%emt 0:00:13]} d6 {[%emt 0:01:37]} 8. Nf3 {[%emt 0:00:13]} Nd7 {[%emt 0:00:38]} 9. Na3 {[%emt 0:00:31]} e5 {[%emt 0:04:32]} 10. Bd3 {[%emt 0:01:59]} Be7 {[%emt 0:05:16]} 11. O-O {[%emt 0:04:51]} Rb8 {[%emt 0:01:33]} 12. a5 {[%emt 0:00:13]} O-O {[%emt 0:00:44]} 13. Nc4 {[%emt 0:00:04]} g6 {[%emt 0:02:37]} 14. Qc2 {[%emt 0:03:04]} Re8 {[%emt 0:07:51]} 15. Ra3 {[%emt 0:00:35]} Nf8 {[%emt 0:01:49]} 16. Rb3 {[%emt 0:00:08]} Bd8 {[%emt 0:00:17]} 17. Nb6 {[%emt 0:02:42]} Bxb6 {[%emt 0:12:52]} 18. Rxb6 {[%emt 0:00:46]} Nd7 {[%emt 0:01:46]} 19. Rb3 {[%emt 0:00:52]} Qd8 {[%emt 0:00:35]} 20. Ra1 {[%emt 0:00:28]} Qc7 {[%emt 0:02:54]} 21. Nd2 {[%emt 0:00:04]} Qd8 {[%emt 0:04:39]} 22. Nc4 {[%emt 0:00:15]} Qe7 {[%emt 0:00:04]} 23. g3 {[%emt 0:01:01]} Kg7 {[%emt 0:01:04]} 24. Qd2 {[%emt 0:00:57]} Rf8 {[%emt 0:01:49]} 25. Ne3 {[%emt 0:03:02]} Nf6 {[%emt 0:03:51]} 26. f3 {[%emt 0:00:06]} Bh3 {[%emt 0:02:45]} 27. Nd1 {[%emt 0:05:05]} Rbd8 {[%emt 0:02:11]} 28. Nf2 {[%emt 0:00:21]} Bc8 {[%emt 0:00:10]} 29. Rba3 {[%emt 0:00:12]} Qc7 {[%emt 0:05:32]} 30. b4 {[%emt 0:00:27]} Bd7 {[%emt 0:06:07]} 31. bxc5 {[%emt 0:00:49]} Qxc5 {[%emt 0:04:46]} 32. Rb3 {[%emt 0:00:07]} Bc8 {[%emt 0:00:07]} 33. Bf1 {[%emt 0:02:26]} Nd7 {[%emt 0:04:05]} 34. c4 {[%emt 0:00:27]} Qc7 {[%emt 0:01:00]} 35. Qb4 {[%emt 0:06:54]} Nc5 {[%emt 0:00:59]} 36. Rc3 {[%emt 0:00:04]} f5 {[%emt 0:01:50]} 37. exf5 {[%emt 0:00:49]} gxf5 {[%emt 0:00:05]} 38. Nd3 {[%emt 0:00:19]} Rde8 {[%emt 0:05:35]} 39. Nxc5 {[%emt 0:00:27]} dxc5 {[%emt 0:00:23]} 40. Qb6 {[%emt 0:00:04]} Qxb6 41. axb6 {[%emt 0:00:01]} Bd7 {[%emt 0:02:07]} 42. Ra5 {[%emt 0:00:12]} Rc8 {[%emt 0:00:01]} 43. Re3 {[%emt 0:00:10]} Kf6 {[%emt 0:00:48]} 44. f4 {[%emt 0:00:17]} e4 {[%emt 0:02:35]} 45. g4 {[%emt 0:00:20]} Rg8 {[%emt 0:02:23]} 46. Be2 {[%emt 0:00:03]} fxg4 {[%emt 0:01:41]} 47. Rxe4 {[%emt 0:00:03]} g3 {[%emt 0:00:13]} 48. h4 {[%emt 0:04:58]} Rge8 {[%emt 0:01:47]} 49. Rxe8 {[%emt 0:01:18]} Rxe8 {[%emt 0:00:04]} 50. Bf3 {[%emt 0:00:02]} Bh3 {[%emt 0:00:14]} 51. Ra1 {[%emt 0:00:03]} Re3 {[%emt 0:01:03]} 52. Bg2 {[%emt 0:00:52]} Bxg2 {[%emt 0:00:51]} 53. Kxg2 {[%emt 0:00:01]} Rc3 {[%emt 0:00:04]} 54. Rd1 {[%emt 0:01:47]} Rxc4 {[%emt 0:01:50]} 55. Kxg3 {[%emt 0:00:03]} a5 {[%emt 0:02:34]} 56. Re1 {[%emt 0:00:28]} a4 {[%emt 0:00:44]} 57. Re6+ {[%emt 0:00:14]} Kf5 {[%emt 0:00:11]} 58. Re7 {[%emt 0:00:19]} a3 {[%emt 0:01:11]} 59. Rxb7 {[%emt 0:00:03]} Rc3+ {[%emt 0:00:37]} 60. Kf2 {[%emt 0:00:04]} a2 {[%emt 0:01:20]} 61. Ra7 {[%emt 0:00:04]} Rb3 {[%emt 0:00:05]} 62. Rxa2 {[%emt 0:00:17]} Rxb6 {[%emt 0:00:08]} 63. Rc2 {[%emt 0:00:11]} Kxf4 {[%emt 0:00:27]} 64. Rxc5 {[%emt 0:00:04]} Rd6 {[%emt 0:01:20]} 65. Rc6 {[%emt 0:00:14]} Ke5 {[%emt 0:00:45]} 66. Kf3 {[%emt 0:00:07]} Kxd5 {[%emt 0:00:08]} 67. Rxd6+ {[%emt 0:00:03]} Ke5 {[%emt 0:00:08]} 1/2-1/2

[Event "94th Paris-ch  2019"]
[Site "Paris"]
[Date "2019.07.12"]
[Round "7.7"]
[White "Stephan, Victor"]
[Black "Sochacki, Christophe"]
[Result "1/2-1/2"]
[ECO "E32"]
[WhiteElo "2358"]
[BlackElo "2481"]
[Annotator "ChessBase"]
[PlyCount "42"]
[EventDate "2019.07.07"]
[EventType "swiss"]
[EventCountry "FRA"]
[SourceTitle "playchess.com"]
[Source "ChessBase"]
[SourceQuality "1"]
[TimeControl "5400+30"]

1. d4 {[%emt 0:00:00]} Nf6 {[%emt 0:00:06]} 2. c4 {[%emt 0:00:00]} e6 {[%emt 0:00:09]} 3. Nc3 {[%emt 0:00:11]} Bb4 {[%emt 0:00:05]} 4. Qc2 {[%emt 0:00:38]} O-O {[%emt 0:00:05]} 5. Nf3 {[%emt 0:02:11]} d5 {[%emt 0:09:47]} 6. cxd5 {[%emt 0:02:06]} exd5 {[%emt 0:00:19]} 7. Bf4 {[%emt 0:00:49]} Ne4 {[%emt 0:10:47]} 8. e3 {[%emt 0:05:15]} Bf5 {[%emt 0:05:17]} 9. Bd3 {[%emt 0:01:47]} c5 {[%emt 0:00:23]} 10. dxc5 {[%emt 0:02:50]} Nd7 {[%emt 0:09:11]} 11. Nd4 {[%emt 0:08:37]} Bg6 {[%emt 0:00:05]} 12. Nb3 {[%emt 0:05:01]} Rc8 {[%emt 0:06:11]} 13. O-O {[%emt 0:02:56]} Ndxc5 {[%emt 0:03:48]} 14. Nxc5 {[%emt 0:01:14]} Rxc5 {[%emt 0:00:40]} 15. Be5 {[%emt 0:02:46]} Qa5 {[%emt 0:22:32]} 16. Bd4 {[%emt 0:09:44]} Rc6 {[%emt 0:00:15]} 17. Bxe4 {[%emt 0:03:05]} dxe4 {[%emt 0:02:02]} 18. Qb3 {[%emt 0:01:52]} Bf5 {[%emt 0:07:15]} 19. a3 {[%emt 0:04:10]} Bxc3 {[%emt 0:03:52]} 20. Bxc3 {[%emt 0:00:11]} Qc7 {[%emt 0:05:03]} 21. Qd5 {[%emt 0:00:58]} Qd7 {[%emt 0:04:14]} 1/2-1/2

[Event "94th Paris-ch  2019"]
[Site "Paris"]
[Date "2019.07.12"]
[Round "7.9"]
[White "Akshat, Khamparia"]
[Black "Lux, Hugo de Melo"]
[Result "1/2-1/2"]
[ECO "E32"]
[WhiteElo "2398"]
[BlackElo "2231"]
[Annotator "NA"]
[PlyCount "47"]
[EventDate "2019.07.07"]
[EventType "swiss"]
[EventCountry "FRA"]
[SourceTitle "playchess.com"]
[Source "ChessBase"]
[SourceQuality "1"]
[TimeControl "5400+30"]

1. d4 {[%emt 0:00:00]} Nf6 {[%emt 0:00:00]} 2. c4 {[%emt 0:00:00]} e6 {[%emt 0:00:00]} 3. Nc3 {[%emt 0:00:01]} Bb4 {[%emt 0:00:00]} 4. Qc2 {[%emt 0:02:39]} b6 {[%emt 0:00:13]} 5. e4 {[%emt 0:01:09]} c5 {[%emt 0:00:28]} 6. d5 {[%emt 0:00:21]} Qe7 {[%emt 0:00:05]} 7. Nge2 {[%emt 0:05:49]} exd5 {[%emt 0:02:12]} 8. exd5 {[%emt 0:00:18]} O-O {[%emt 0:00:56]} 9. Bd2 {[%emt 0:01:36]} d6 {[%emt 0:00:06]} 10. O-O-O {[%emt 0:00:51]} Ng4 {[%emt 0:04:10]} 11. Be1 {[%emt 0:00:27]} Qg5+ {[%emt 0:11:02]} 12. Qd2 {[%emt 0:02:01]} Qxd2+ {[%emt 0:10:39]} 13. Kxd2 {[%emt 0:08:49]} Ba6 {[%emt 0:15:49]} 14. a3 {[%emt 0:03:02]} Ba5 {[%emt 0:00:56]} 15. Rb1 {[%emt 0:01:59]} b5 {[%emt 0:13:46]} 16. cxb5 {[%emt 0:01:41]} Bb7 {[%emt 0:00:36]} 17. h3 {[%emt 0:01:33]} Nf6 {[%emt 0:00:22]} 18. Kc2 {[%emt 0:04:11]} Nbd7 {[%emt 0:05:10]} 19. Ng3 {[%emt 0:01:31]} Bc7 {[%emt 0:06:14]} 20. Rd1 {[%emt 0:03:38]} Nb6 {[%emt 0:00:25]} 21. Be2 {[%emt 0:05:23]} Rae8 {[%emt 0:00:11]} 22. Bf3 {[%emt 0:00:51]} Re5 {[%emt 0:00:39]} 23. Bd2 {[%emt 0:07:57]} Nbxd5 {[%emt 0:01:12]} 24. Nxd5 {[%emt 0:02:27]} 1/2-1/2

[Event "94th Paris-ch  2019"]
[Site "Paris"]
[Date "2019.07.12"]
[Round "7.11"]
[White "Ojas Kulkarni"]
[Black "Bergez, Luc"]
[Result "1/2-1/2"]
[ECO "A21"]
[WhiteElo "2251"]
[BlackElo "2308"]
[Annotator "ChessBase"]
[PlyCount "127"]
[EventDate "2019.07.07"]
[EventType "swiss"]
[EventCountry "FRA"]
[SourceTitle "playchess.com"]
[Source "ChessBase"]
[SourceQuality "1"]
[TimeControl "5400+30"]

1. c4 {[%emt 0:00:00]} e5 {[%emt 0:01:10]} 2. g3 {[%emt 0:00:00]} d6 {[%emt 0:00:58]} 3. Bg2 {[%emt 0:00:15]} f5 {[%emt 0:00:17]} 4. Nc3 {[%emt 0:00:18]} Nf6 {[%emt 0:00:29]} 5. d3 {[%emt 0:01:43]} Be7 {[%emt 0:00:41]} 6. e4 {[%emt 0:01:06]} O-O {[%emt 0:02:20]} 7. Nge2 {[%emt 0:00:05]} Na6 {[%emt 0:07:32]} 8. O-O {[%emt 0:00:47]} c6 {[%emt 0:00:48]} 9. b3 {[%emt 0:04:17]} Qe8 {[%emt 0:05:48]} 10. exf5 {[%emt 0:29:02]} Bxf5 {[%emt 0:00:46]} 11. Ne4 {[%emt 0:00:12]} Qg6 {[%emt 0:02:56]} 12. N2c3 {[%emt 0:01:25]} Nc7 {[%emt 0:01:28]} 13. Ba3 {[%emt 0:09:45]} Rad8 {[%emt 0:00:44]} 14. Qd2 {[%emt 0:00:56]} Ne6 {[%emt 0:01:07]} 15. Rae1 {[%emt 0:00:25]} Kh8 {[%emt 0:01:24]} 16. Qe3 {[%emt 0:08:36]} Nd4 {[%emt 0:02:53]} 17. Qd2 {[%emt 0:00:09]} Ne6 {[%emt 0:00:46]} 18. Qe3 {[%emt 0:00:42]} Ng8 {[%emt 0:01:13]} 19. Ne2 {[%emt 0:07:49]} Ng5 {[%emt 0:05:36]} 20. Nxg5 {[%emt 0:01:08]} Bxg5 {[%emt 0:00:10]} 21. f4 {[%emt 0:00:04]} Bh6 {[%emt 0:04:01]} 22. d4 {[%emt 0:05:03]} Rfe8 {[%emt 0:09:12]} 23. Qf2 {[%emt 0:00:22]} Bd3 {[%emt 0:03:16]} 24. dxe5 {[%emt 0:04:19]} dxe5 {[%emt 0:00:15]} 25. fxe5 {[%emt 0:00:04]} Rxe5 {[%emt 0:01:07]} 26. Nf4 {[%emt 0:00:20]} Bxf4 {[%emt 0:02:34]} 27. Qxf4 {[%emt 0:00:54]} Rf5 {[%emt 0:08:19]} 28. Qc7 {[%emt 0:01:14]} Re8 {[%emt 0:00:55]} 29. Rxe8 {[%emt 0:02:34]} Rxf1+ {[%emt 0:00:18]} 30. Bxf1 {[%emt 0:00:12]} Qxe8 {[%emt 0:00:04]} 31. Bxd3 {[%emt 0:01:35]} Qe3+ {[%emt 0:00:21]} 32. Kg2 {[%emt 0:00:04]} Qxd3 {[%emt 0:03:56]} 33. Qxb7 {[%emt 0:02:34]} Qc2+ {[%emt 0:07:40]} 34. Kh3 {[%emt 0:00:08]} Qf5+ {[%emt 0:00:19]} 35. Kg2 {[%emt 0:00:10]} Qc2+ {[%emt 0:00:06]} 36. Kh3 {[%emt 0:00:05]} Qxa2 {[%emt 0:00:43]} 37. Bc5 {[%emt 0:02:59]} Qb1 {[%emt 0:01:33]} 38. Qxc6 {[%emt 0:01:23]} Qf1+ {[%emt 0:00:30]} 39. Kh4 {[%emt 0:00:07]} Qe2 {[%emt 0:08:19]} 40. h3 {[%emt 0:09:24]} h6 {[%emt 0:01:43]} 41. Qg6 {[%emt 0:00:04]} Qe5 {[%emt 0:00:35]} 42. Bd6 {[%emt 0:07:16]} Qd4+ {[%emt 0:00:13]} 43. Bf4 {[%emt 0:00:09]} Nf6 {[%emt 0:09:43]} 44. c5 {[%emt 0:00:01]} Qxc5 {[%emt 0:02:01]} 45. Bxh6 {[%emt 0:00:06]} Qb4+ {[%emt 0:00:19]} 46. Bf4 {[%emt 0:00:16]} Qxb3 {[%emt 0:00:16]} 47. Qf5 {[%emt 0:00:29]} Qc4 {[%emt 0:05:02]} 48. Qe5 {[%emt 0:02:06]} a6 {[%emt 0:00:32]} 49. Kg5 {[%emt 0:00:22]} Qf7 {[%emt 0:00:49]} 50. Kh4 {[%emt 0:00:54]} Nd5 {[%emt 0:00:33]} 51. Kg4 {[%emt 0:00:31]} a5 {[%emt 0:00:20]} 52. Qb8+ {[%emt 0:00:53]} Kh7 {[%emt 0:00:03]} 53. Qb1+ {[%emt 0:00:04]} Qg6+ {[%emt 0:00:56]} 54. Qxg6+ {[%emt 0:00:11]} Kxg6 {[%emt 0:00:02]} 55. Be5 {[%emt 0:00:12]} a4 {[%emt 0:00:09]} 56. h4 {[%emt 0:01:02]} Ne3+ {[%emt 0:01:25]} 57. Kf3 {[%emt 0:00:10]} Nc2 {[%emt 0:00:08]} 58. g4 {[%emt 0:00:43]} a3 {[%emt 0:00:08]} 59. h5+ {[%emt 0:00:05]} Kh7 {[%emt 0:00:21]} 60. g5 {[%emt 0:00:20]} a2 {[%emt 0:00:09]} 61. g6+ {[%emt 0:00:02]} Kg8 {[%emt 0:01:49]} 62. Kg4 {[%emt 0:00:19]} a1=Q {[%emt 0:00:28]} 63. Bxa1 {[%emt 0:00:04]} Nxa1 {[%emt 0:00:08]} 64. Kg5 {[%emt 0:00:02]} 1/2-1/2